[Event "ESTCC 65 2019"]
[Site "Mali Losinj"]
[Date "2019.09.21"]
[Round "4.5"]
[White "Renman, Nils-Gustaf"]
[Black "Beilfuss, Wilfried, Dr."]
[Result "0-1"]
[ECO "E15"]
[WhiteElo "2340"]
[BlackElo "2192"]
[Annotator "NA"]
[PlyCount "64"]
[EventDate "2019.09.18"]
[EventType "team-tourn"]
[EventCountry "CRO"]
[SourceTitle "playchess.com"]
[Source "ChessBase"]
[SourceQuality "1"]
[WhiteTeam "SWE"]
[BlackTeam "GER"]
[WhiteTeamCountry "SWE"]
[BlackTeamCountry "GER"]
[TimeControl "40/5400+30:1800+30"]

1. d4 {[%emt 0:00:30]} Nf6 {[%emt 0:00:30]} 2. Nf3 {[%emt 0:00:00]} e6 {[%emt 0:00:00]} 3. c4 {[%emt 0:00:00]} b6 {[%emt 0:01:00]} 4. g3 {[%emt 0:00:30]} Ba6 {[%emt 0:00:30]} 5. Qc2 {[%emt 0:00:30]} c5 {[%emt 0:00:30]} 6. Bg2 {[%emt 0:00:30]} Bb7 {[%emt 0:00:30]} 7. d5 {[%emt 0:00:30]} exd5 {[%emt 0:00:30]} 8. cxd5 {[%emt 0:00:00]} Nxd5 {[%emt 0:07:30]} 9. O-O {[%emt 0:00:00]} Be7 {[%emt 0:16:30]} 10. Rd1 {[%emt 0:00:00]} Nc6 {[%emt 0:01:30]} 11. Qa4 {[%emt 0:00:00]} Nf6 {[%emt 0:03:30]} 12. Nh4 {[%emt 0:00:00]} g6 {[%emt 0:03:30]} 13. Bh6 {[%emt 0:01:00]} Bf8 {[%emt 0:00:30]} 14. Bg5 {[%emt 0:09:30]} Be7 {[%emt 0:01:30]} 15. Qf4 {[%emt 0:02:30]} O-O {[%emt 0:04:30]} 16. Bh6 {[%emt 0:07:30]} Nh5 {[%emt 0:13:30]} 17. Qd2 {[%emt 0:00:30]} Ng7 {[%emt 0:00:30]} 18. Nc3 {[%emt 0:00:30]} d6 {[%emt 0:00:30]} 19. Nb5 {[%emt 0:04:30]} Na5 {[%emt 0:02:30]} 20. e4 {[%emt 0:03:30]} Re8 {[%emt 0:02:30]} 21. Qf4 {[%emt 0:18:30]} Nh5 {[%emt 0:06:30]} 22. Qc1 {[%emt 0:00:30]} Qd7 {[%emt 0:01:30]} 23. Nxd6 {[%emt 0:10:30]} Bxd6 {[%emt 0:01:30]} 24. Nf5 {[%emt 0:00:00]} gxf5 {[%emt 0:01:30]} 25. Qg5+ {[%emt 0:00:00]} Kh8 {[%emt 0:00:00]} 26. Qxh5 {[%emt 0:00:30]} Qe7 {[%emt 0:11:41]} 27. Qxf5 {[%emt 0:28:05]} Qe6 {[%emt 0:01:48]} 28. Qg5 {[%emt 0:06:54]} Rg8 {[%emt 0:00:21]} 29. Qc1 {[%emt 0:00:17]} Be5 {[%emt 0:01:25]} 30. Bf4 {[%emt 0:02:51]} Rad8 {[%emt 0:02:06]} 31. Bh3 {[%emt 0:01:05]} Qe7 {[%emt 0:02:20]} 32. Qe3 {[%emt 0:03:00]} Bd4 {[%emt 0:01:11]} 0-1

[Event "ESTCC 65 2019"]
[Site "Mali Losinj"]
[Date "2019.09.21"]
[Round "4.6"]
[White "Becker, Norbert"]
[Black "Wahlbom, Magnus"]
[Result "1/2-1/2"]
[ECO "A24"]
[WhiteElo "2131"]
[BlackElo "2255"]
[Annotator "NA"]
[PlyCount "96"]
[EventDate "2019.09.18"]
[EventType "team-tourn"]
[EventCountry "CRO"]
[SourceTitle "playchess.com"]
[Source "ChessBase"]
[SourceQuality "1"]
[WhiteTeam "Germany"]
[BlackTeam "Sweden"]
[WhiteTeamCountry "GER"]
[BlackTeamCountry "SWE"]
[TimeControl "40/5400+30:1800+30"]

1. c4 {[%emt 0:00:30]} Nf6 {[%emt 0:00:30]} 2. g3 {[%emt 0:00:00]} g6 {[%emt 0:00:30]} 3. Bg2 {[%emt 0:00:00]} Bg7 {[%emt 0:00:00]} 4. Nc3 {[%emt 0:00:30]} O-O {[%emt 0:01:00]} 5. Nf3 {[%emt 0:00:30]} d6 {[%emt 0:03:30]} 6. O-O {[%emt 0:00:30]} e5 {[%emt 0:00:30]} 7. d3 {[%emt 0:00:30]} Nbd7 {[%emt 0:04:30]} 8. Bd2 {[%emt 0:03:30]} Nh5 {[%emt 0:06:30]} 9. b4 {[%emt 0:03:30]} h6 {[%emt 0:06:30]} 10. e4 {[%emt 0:10:30]} Kh7 {[%emt 0:00:30]} 11. Ne1 {[%emt 0:05:30]} c6 {[%emt 0:05:30]} 12. a4 {[%emt 0:04:30]} a5 {[%emt 0:02:30]} 13. bxa5 {[%emt 0:03:30]} Rxa5 {[%emt 0:04:30]} 14. Ra2 {[%emt 0:07:30]} Nc5 {[%emt 0:04:30]} 15. Ne2 {[%emt 0:05:30]} Ra6 {[%emt 0:05:30]} 16. f4 {[%emt 0:03:30]} f5 {[%emt 0:13:30]} 17. Be3 {[%emt 0:06:30]} Qe7 {[%emt 0:10:30]} 18. Bxc5 {[%emt 0:06:30]} dxc5 {[%emt 0:00:30]} 19. fxe5 {[%emt 0:06:30]} Qxe5 {[%emt 0:01:30]} 20. Nf4 {[%emt 0:05:30]} Nxf4 {[%emt 0:05:30]} 21. gxf4 {[%emt 0:01:30]} Qd4+ {[%emt 0:01:30]} 22. Kh1 {[%emt 0:00:30]} Be6 {[%emt 0:01:30]} 23. Qb3 {[%emt 0:02:30]} b5 {[%emt 0:02:28]} 24. axb5 {[%emt 0:02:30]} Rxa2 {[%emt 0:00:08]} 25. Qxa2 {[%emt 0:00:30]} cxb5 {[%emt 0:00:26]} 26. Qa6 {[%emt 0:00:35]} Bc8 {[%emt 0:04:53]} 27. Qxb5 {[%emt 0:00:38]} fxe4 {[%emt 0:00:26]} 28. Bxe4 {[%emt 0:03:09]} Bf5 {[%emt 0:01:58]} 29. Qb7 {[%emt 0:03:43]} Bxe4+ {[%emt 0:06:57]} 30. Qxe4 {[%emt 0:01:05]} Qxe4+ {[%emt 0:01:46]} 31. dxe4 {[%emt 0:00:08]} g5 {[%emt 0:00:29]} 32. Nd3 {[%emt 0:04:05]} gxf4 {[%emt 0:00:27]} 33. Rxf4 {[%emt 0:00:58]} Rc8 {[%emt 0:01:48]} 34. Kg2 {[%emt 0:01:45]} Bd4 {[%emt 0:00:14]} 35. Kf3 {[%emt 0:02:00]} Ra8 {[%emt 0:02:59]} 36. e5 {[%emt 0:01:01]} Kg7 {[%emt 0:01:05]} 37. Ke4 {[%emt 0:01:12]} Re8 {[%emt 0:00:09]} 38. Rf5 {[%emt 0:01:55]} Bg1 {[%emt 0:00:44]} 39. Rf1 {[%emt 0:02:12]} Bd4 {[%emt 0:00:24]} 40. Rb1 {[%emt 0:01:07]} Kg6 {[%emt 0:00:40]} 41. Rb6+ {[%emt 0:31:07]} Kg5 {[%emt 0:00:29]} 42. Kd5 {[%emt 0:00:00]} h5 {[%emt 0:01:30]} 43. e6 {[%emt 0:00:00]} Bg1 {[%emt 0:02:30]} 44. h3 {[%emt 0:00:00]} Kf6 {[%emt 0:01:30]} 45. Rd6 {[%emt 0:00:00]} Bh2 {[%emt 0:00:30]} 46. Rc6 {[%emt 0:00:00]} Rd8+ {[%emt 0:00:30]} 47. Ke4 {[%emt 0:00:00]} Rd4+ {[%emt 0:00:30]} 48. Ke3 {[%emt 0:00:00]} Bg1+ {[%emt 0:00:30]} 1/2-1/2

[Event "ESTCC 65 2019"]
[Site "Mali Losinj"]
[Date "2019.09.21"]
[Round "4.7"]
[White "Malmdin, Nils-Ake"]
[Black "Mueller, Gerhard"]
[Result "1-0"]
[ECO "B50"]
[WhiteElo "2142"]
[BlackElo "2104"]
[Annotator "NA"]
[PlyCount "67"]
[EventDate "2019.09.18"]
[EventType "team-tourn"]
[EventCountry "CRO"]
[SourceTitle "playchess.com"]
[Source "ChessBase"]
[SourceQuality "1"]
[WhiteTeam "Sweden"]
[BlackTeam "Germany"]
[WhiteTeamCountry "SWE"]
[BlackTeamCountry "GER"]
[TimeControl "40/5400+30:1800+30"]

1. e4 {[%emt 0:00:30]} c5 {[%emt 0:00:30]} 2. Nf3 {[%emt 0:00:00]} d6 {[%emt 0:00:00]} 3. Nc3 {[%emt 0:00:00]} Nf6 {[%emt 0:00:00]} 4. e5 {[%emt 0:00:30]} dxe5 {[%emt 0:00:30]} 5. Nxe5 {[%emt 0:00:30]} Nbd7 {[%emt 0:02:30]} 6. d4 {[%emt 0:07:30]} e6 {[%emt 0:17:30]} 7. Bf4 {[%emt 0:09:30]} Be7 {[%emt 0:06:30]} 8. dxc5 {[%emt 0:05:30]} Bxc5 {[%emt 0:04:30]} 9. Qf3 {[%emt 0:08:30]} Nxe5 {[%emt 0:04:30]} 10. Bxe5 {[%emt 0:00:30]} O-O {[%emt 0:01:30]} 11. Rd1 {[%emt 0:06:30]} Qe7 {[%emt 0:00:00]} 12. Qg3 {[%emt 0:04:30]} g6 {[%emt 0:06:00]} 13. Be2 {[%emt 0:03:30]} Nd7 {[%emt 0:11:30]} 14. Bf4 {[%emt 0:05:30]} f6 {[%emt 0:05:30]} 15. a3 {[%emt 0:03:30]} Rf7 {[%emt 0:05:30]} 16. b4 {[%emt 0:01:30]} Bb6 {[%emt 0:00:00]} 17. Bd6 {[%emt 0:02:30]} Qe8 {[%emt 0:00:00]} 18. Bb5 {[%emt 0:07:30]} a6 {[%emt 0:01:30]} 19. Ba4 {[%emt 0:00:00]} Bd8 {[%emt 0:00:30]} 20. Qf3 {[%emt 0:01:00]} Be7 {[%emt 0:04:30]} 21. O-O {[%emt 0:00:30]} Qf8 {[%emt 0:04:30]} 22. Ne4 {[%emt 0:08:30]} Nb6 {[%emt 0:10:06]} 23. Bxe7 {[%emt 0:01:30]} Qxe7 {[%emt 0:00:40]} 24. Bb3 {[%emt 0:00:30]} Kg7 {[%emt 0:01:20]} 25. Rfe1 {[%emt 0:02:36]} Rf8 {[%emt 0:00:45]} 26. Rd6 {[%emt 0:01:50]} Nd5 {[%emt 0:02:47]} 27. Qg3 {[%emt 0:02:42]} f5 {[%emt 0:01:23]} 28. Qe5+ {[%emt 0:00:13]} Nf6 {[%emt 0:00:29]} 29. Nc5 {[%emt 0:00:24]} Rd8 {[%emt 0:06:56]} 30. Nxe6+ {[%emt 0:00:44]} Bxe6 {[%emt 0:00:10]} 31. Rxe6 {[%emt 0:00:26]} Qf8 {[%emt 0:00:39]} 32. Re7+ {[%emt 0:00:23]} Kh8 {[%emt 0:00:49]} 33. Rf7 {[%emt 0:00:26]} Qd6 {[%emt 0:00:03]} 34. Qxf6+ {[%emt 0:00:38]} 1-0

[Event "ESTCC 65 2019"]
[Site "Mali Losinj"]
[Date "2019.09.21"]
[Round "4.8"]
[White "Thoele, Wolfgang, Dr."]
[Black "Friberg, Hans"]
[Result "0-1"]
[ECO "B02"]
[WhiteElo "1865"]
[BlackElo "2119"]
[Annotator "NA"]
[PlyCount "136"]
[EventDate "2019.09.18"]
[EventType "team-tourn"]
[EventCountry "CRO"]
[SourceTitle "playchess.com"]
[Source "ChessBase"]
[SourceQuality "1"]
[WhiteTeam "GER"]
[BlackTeam "SWE"]
[WhiteTeamCountry "GER"]
[BlackTeamCountry "SWE"]
[TimeControl "40/5400+30:1800+30"]

1. e4 {[%emt 0:00:30]} Nf6 {[%emt 0:00:30]} 2. Nc3 {[%emt 0:01:30]} d5 {[%emt 0:00:30]} 3. exd5 {[%emt 0:02:30]} Nxd5 {[%emt 0:00:30]} 4. d4 {[%emt 0:03:30]} Bf5 {[%emt 0:05:30]} 5. Nxd5 {[%emt 0:04:30]} Qxd5 {[%emt 0:00:30]} 6. Be3 {[%emt 0:04:30]} e6 {[%emt 0:01:30]} 7. Nf3 {[%emt 0:05:30]} Nc6 {[%emt 0:04:30]} 8. c3 {[%emt 0:05:30]} Be7 {[%emt 0:01:30]} 9. Be2 {[%emt 0:01:30]} O-O {[%emt 0:04:30]} 10. O-O {[%emt 0:00:30]} a6 {[%emt 0:03:30]} 11. b3 {[%emt 0:04:30]} Rad8 {[%emt 0:04:30]} 12. Bf4 {[%emt 0:07:30]} Bd6 {[%emt 0:08:30]} 13. Bxd6 {[%emt 0:05:30]} Rxd6 {[%emt 0:05:30]} 14. Nh4 {[%emt 0:01:30]} Qe4 {[%emt 0:08:30]} 15. Nxf5 {[%emt 0:01:30]} Qxf5 {[%emt 0:00:00]} 16. Bd3 {[%emt 0:01:30]} Qf6 {[%emt 0:06:00]} 17. Qc2 {[%emt 0:06:30]} g6 {[%emt 0:01:30]} 18. Rae1 {[%emt 0:05:30]} Rfd8 {[%emt 0:09:30]} 19. Be4 {[%emt 0:07:30]} b5 {[%emt 0:01:30]} 20. Bxc6 {[%emt 0:01:30]} Rxc6 {[%emt 0:00:00]} 21. Qb2 {[%emt 0:08:06]} b4 {[%emt 0:06:00]} 22. cxb4 {[%emt 0:01:20]} Qxd4 {[%emt 0:00:30]} 23. Qxd4 {[%emt 0:01:24]} Rxd4 {[%emt 0:00:30]} 24. Rc1 {[%emt 0:01:35]} Rdd6 {[%emt 0:06:30]} 25. g3 {[%emt 0:02:25]} Kf8 {[%emt 0:01:29]} 26. Rc4 {[%emt 0:05:39]} Rxc4 {[%emt 0:01:20]} 27. bxc4 {[%emt 0:00:21]} Rd2 {[%emt 0:00:15]} 28. a4 {[%emt 0:00:57]} Rc2 {[%emt 0:02:04]} 29. a5 {[%emt 0:03:09]} Rxc4 {[%emt 0:00:40]} 30. b5 {[%emt 0:00:10]} Ra4 {[%emt 0:01:50]} 31. bxa6 {[%emt 0:00:47]} Rxa5 {[%emt 0:00:11]} 32. Rc1 {[%emt 0:00:05]} Rxa6 {[%emt 0:00:18]} 33. Rxc7 {[%emt 0:00:02]} Rd6 {[%emt 0:01:05]} 34. Kg2 {[%emt 0:00:16]} Ke8 {[%emt 0:00:06]} 35. Kf3 {[%emt 0:00:27]} Rd7 {[%emt 0:00:07]} 36. Rc8+ {[%emt 0:00:58]} Ke7 {[%emt 0:00:05]} 37. g4 {[%emt 0:00:44]} Rd3+ {[%emt 0:00:21]} 38. Kg2 {[%emt 0:00:26]} Kf6 {[%emt 0:00:19]} 39. Rh8 {[%emt 0:01:13]} Kg7 {[%emt 0:00:04]} 40. Rc8 {[%emt 0:00:38]} h5 {[%emt 0:00:08]} 41. gxh5 {[%emt 0:31:28]} gxh5 {[%emt 0:30:06]} 42. h3 {[%emt 0:00:28]} Kf6 {[%emt 0:02:36]} 43. Rh8 {[%emt 0:00:59]} Rd5 {[%emt 0:00:09]} 44. Kg3 {[%emt 0:01:24]} Rg5+ {[%emt 0:07:44]} 45. Kf3 {[%emt 0:00:29]} Rf5+ {[%emt 0:01:50]} 46. Kg3 {[%emt 0:00:18]} Ke5 {[%emt 0:01:05]} 47. Ra8 {[%emt 0:01:25]} h4+ {[%emt 0:02:35]} 48. Kg2 {[%emt 0:00:35]} Rf4 {[%emt 0:00:07]} 49. Ra5+ {[%emt 0:00:37]} Kf6 {[%emt 0:00:42]} 50. Rb5 {[%emt 0:01:19]} e5 {[%emt 0:00:12]} 51. Rb6+ {[%emt 0:00:44]} Kf5 {[%emt 0:00:12]} 52. Rb5 {[%emt 0:00:36]} f6 {[%emt 0:04:12]} 53. Ra5 {[%emt 0:00:00]} Rc4 {[%emt 0:00:00]} 54. Rb5 {[%emt 0:00:00]} Kf4 {[%emt 0:00:00]} 55. Rb6 {[%emt 0:00:00]} Kg5 {[%emt 0:00:00]} 56. Rb5 {[%emt 0:00:00]} Re4 {[%emt 0:00:00]} 57. Rb8 {[%emt 0:00:00]} Rd4 {[%emt 0:00:00]} 58. Rb5 {[%emt 0:00:00]} Rd2 {[%emt 0:00:00]} 59. Rb4 {[%emt 0:00:00]} f5 {[%emt 0:00:00]} 60. Rb8 {[%emt 0:00:00]} e4 {[%emt 0:00:00]} 61. Kg1 {[%emt 0:00:00]} Kf4 {[%emt 0:00:00]} 62. Rb4 {[%emt 0:00:00]} Kf3 {[%emt 0:00:00]} 63. Rb5 {[%emt 0:00:00]} f4 {[%emt 0:00:00]} 64. Re5 {[%emt 0:00:00]} Rxf2 {[%emt 0:00:00]} 65. Rxe4 {[%emt 0:00:00]} Rg2+ {[%emt 0:00:00]} 66. Kh1 {[%emt 0:00:00]} Kxe4 {[%emt 0:00:00]} 67. Kxg2 {[%emt 0:00:00]} Ke3 {[%emt 0:00:00]} 68. Kf1 {[%emt 0:00:00]} Kf3 {[%emt 0:00:00]} 0-1

[Event "ESTCC 65 2019"]
[Site "Mali Losinj"]
[Date "2019.09.21"]
[Round "4.9"]
[White "Quinn, John M"]
[Black "Werner, Clemens"]
[Result "1/2-1/2"]
[ECO "E90"]
[WhiteElo "2105"]
[BlackElo "2286"]
[Annotator "NA"]
[PlyCount "60"]
[EventDate "2019.09.18"]
[EventType "team-tourn"]
[EventCountry "CRO"]
[SourceTitle "playchess.com"]
[Source "ChessBase"]
[SourceQuality "1"]
[WhiteTeam "England"]
[BlackTeam "Germany"]
[WhiteTeamCountry "ENG"]
[BlackTeamCountry "GER"]
[TimeControl "40/5400+30:1800+30"]

1. d4 {[%emt 0:00:30]} Nf6 {[%emt 0:00:30]} 2. c4 {[%emt 0:00:00]} d6 {[%emt 0:00:30]} 3. Nc3 {[%emt 0:00:00]} g6 {[%emt 0:00:30]} 4. Nf3 {[%emt 0:00:30]} Bg7 {[%emt 0:00:00]} 5. e4 {[%emt 0:00:30]} O-O {[%emt 0:00:00]} 6. h3 {[%emt 0:00:00]} e5 {[%emt 0:00:30]} 7. d5 {[%emt 0:00:00]} Nh5 {[%emt 0:00:30]} 8. g3 {[%emt 0:08:30]} f5 {[%emt 0:00:30]} 9. exf5 {[%emt 0:09:30]} gxf5 {[%emt 0:00:30]} 10. Nh2 {[%emt 0:00:00]} Qe8 {[%emt 0:06:30]} 11. Be2 {[%emt 0:03:00]} Nf6 {[%emt 0:00:30]} 12. g4 {[%emt 0:01:30]} Na6 {[%emt 0:00:30]} 13. a3 {[%emt 0:01:30]} Nc5 {[%emt 0:06:30]} 14. gxf5 {[%emt 0:20:30]} Bxf5 {[%emt 0:02:30]} 15. Be3 {[%emt 0:06:30]} b6 {[%emt 0:06:30]} 16. Rg1 {[%emt 0:02:30]} Kh8 {[%emt 0:01:30]} 17. b4 {[%emt 0:06:30]} Ncd7 {[%emt 0:10:30]} 18. Qd2 {[%emt 0:04:30]} Rg8 {[%emt 0:04:30]} 19. O-O-O {[%emt 0:02:30]} a5 {[%emt 0:04:30]} 20. Kb2 {[%emt 0:01:30]} Qe7 {[%emt 0:10:30]} 21. Ng4 {[%emt 0:02:30]} Nxg4 {[%emt 0:01:30]} 22. Bxg4 {[%emt 0:00:30]} Qf7 {[%emt 0:04:30]} 23. Bxf5 {[%emt 0:08:37]} Qxf5 {[%emt 0:00:30]} 24. Rg5 {[%emt 0:00:28]} Qf7 {[%emt 0:04:30]} 25. Rdg1 {[%emt 0:02:01]} axb4 {[%emt 0:02:30]} 26. axb4 {[%emt 0:00:09]} e4 {[%emt 0:00:00]} 27. Bd4 {[%emt 0:03:20]} Ne5 {[%emt 0:00:00]} 28. Bxe5 {[%emt 0:00:23]} Bxe5 {[%emt 0:00:30]} 29. Rxg8+ {[%emt 0:00:14]} Rxg8 {[%emt 0:00:30]} 30. Rxg8+ {[%emt 0:00:02]} Kxg8 {[%emt 0:08:30]} 1/2-1/2

[Event "ESTCC 65 2019"]
[Site "Mali Losinj"]
[Date "2019.09.21"]
[Round "4.10"]
[White "Kierzek, Matthias, Dr."]
[Black "Hutchinson, Paul A"]
[Result "1/2-1/2"]
[ECO "A06"]
[WhiteElo "2186"]
[BlackElo "2124"]
[Annotator "NA"]
[PlyCount "70"]
[EventDate "2019.09.18"]
[EventType "team-tourn"]
[EventCountry "CRO"]
[SourceTitle "playchess.com"]
[Source "ChessBase"]
[SourceQuality "1"]
[WhiteTeam "GER"]
[BlackTeam "ENG"]
[WhiteTeamCountry "GER"]
[BlackTeamCountry "ENG"]
[TimeControl "40/5400+30:1800+30"]

1. d4 {[%emt 0:00:30]} d5 {[%emt 0:00:30]} 2. c4 {[%emt 0:00:00]} c6 {[%emt 0:00:00]} 3. Nf3 {[%emt 0:00:00]} Nf6 {[%emt 0:00:00]} 4. e3 {[%emt 0:00:00]} e6 {[%emt 0:00:30]} 5. b3 {[%emt 0:00:00]} Bd6 {[%emt 0:00:00]} 6. Bb2 {[%emt 0:00:30]} Nbd7 {[%emt 0:01:00]} 7. Bd3 {[%emt 0:00:30]} O-O {[%emt 0:00:00]} 8. O-O {[%emt 0:00:00]} Qe7 {[%emt 0:04:00]} 9. Ne5 {[%emt 0:14:00]} Ne8 {[%emt 0:05:30]} 10. f4 {[%emt 0:02:30]} g6 {[%emt 0:07:30]} 11. Nd2 {[%emt 0:03:30]} f6 {[%emt 0:00:30]} 12. Nxd7 {[%emt 0:04:30]} Bxd7 {[%emt 0:00:30]} 13. Nf3 {[%emt 0:10:30]} Rf7 {[%emt 0:05:30]} 14. Qe2 {[%emt 0:03:30]} Ng7 {[%emt 0:04:30]} 15. a3 {[%emt 0:00:30]} b6 {[%emt 0:07:30]} 16. b4 {[%emt 0:01:30]} c5 {[%emt 0:01:30]} 17. bxc5 {[%emt 0:07:30]} bxc5 {[%emt 0:00:30]} 18. dxc5 {[%emt 0:07:30]} Bxc5 {[%emt 0:00:00]} 19. cxd5 {[%emt 0:01:30]} exd5 {[%emt 0:00:00]} 20. Nd4 {[%emt 0:00:30]} Re8 {[%emt 0:00:30]} 21. Rfe1 {[%emt 0:01:30]} Qd6 {[%emt 0:04:30]} 22. Qf2 {[%emt 0:02:30]} Rfe7 {[%emt 0:01:30]} 23. Kh1 {[%emt 0:04:30]} Nf5 {[%emt 0:02:30]} 24. Bxf5 {[%emt 0:02:30]} Bxf5 {[%emt 0:00:30]} 25. Nxf5 {[%emt 0:06:30]} gxf5 {[%emt 0:00:30]} 26. Qh4 {[%emt 0:02:30]} d4 {[%emt 0:00:30]} 27. exd4 {[%emt 0:03:30]} Bxd4 {[%emt 0:03:30]} 28. Rxe7 {[%emt 0:01:30]} Rxe7 {[%emt 0:00:30]} 29. Bxd4 {[%emt 0:00:30]} Qxd4 {[%emt 0:00:00]} 30. Rb1 {[%emt 0:08:24]} Qe3 {[%emt 0:02:00]} 31. Rb8+ {[%emt 0:02:30]} Kg7 {[%emt 0:00:00]} 32. Qg3+ {[%emt 0:00:32]} Qxg3 {[%emt 0:03:00]} 33. hxg3 {[%emt 0:00:06]} Kg6 {[%emt 0:01:30]} 34. Rb5 {[%emt 0:01:18]} Re6 {[%emt 0:01:30]} 35. Kh2 {[%emt 0:02:41]} Ra6 {[%emt 0:01:30]} 1/2-1/2

[Event "ESTCC 65 2019"]
[Site "Mali Losinj"]
[Date "2019.09.21"]
[Round "4.11"]
[White "Hewson, Brian W R"]
[Black "Herbrechtsmeier, Christof"]
[Result "1/2-1/2"]
[ECO "D76"]
[WhiteElo "2074"]
[BlackElo "2210"]
[Annotator "NA"]
[PlyCount "61"]
[EventDate "2019.09.18"]
[EventType "team-tourn"]
[EventCountry "CRO"]
[SourceTitle "playchess.com"]
[Source "ChessBase"]
[SourceQuality "1"]
[WhiteTeam "England"]
[BlackTeam "Germany"]
[WhiteTeamCountry "ENG"]
[BlackTeamCountry "GER"]
[TimeControl "40/5400+30:1800+30"]

1. d4 {[%emt 0:00:30]} Nf6 {[%emt 0:00:30]} 2. Nf3 {[%emt 0:00:30]} g6 {[%emt 0:00:30]} 3. g3 {[%emt 0:00:00]} Bg7 {[%emt 0:00:00]} 4. Bg2 {[%emt 0:00:00]} O-O {[%emt 0:00:00]} 5. O-O {[%emt 0:00:00]} d5 {[%emt 0:00:30]} 6. c4 {[%emt 0:01:00]} Nc6 {[%emt 0:00:00]} 7. cxd5 {[%emt 0:03:30]} Nxd5 {[%emt 0:03:00]} 8. e4 {[%emt 0:02:30]} Nb6 {[%emt 0:02:30]} 9. d5 {[%emt 0:01:30]} Na5 {[%emt 0:00:30]} 10. Nc3 {[%emt 0:00:30]} c6 {[%emt 0:00:30]} 11. dxc6 {[%emt 0:27:30]} Qxd1 {[%emt 0:01:30]} 12. Nxd1 {[%emt 0:02:30]} Nxc6 {[%emt 0:01:30]} 13. Bd2 {[%emt 0:00:30]} Nc4 {[%emt 0:04:30]} 14. Bc3 {[%emt 0:08:30]} Bg4 {[%emt 0:06:30]} 15. Nd2 {[%emt 0:14:30]} Nxd2 {[%emt 0:03:30]} 16. Bxd2 {[%emt 0:01:30]} Be2 {[%emt 0:06:30]} 17. Re1 {[%emt 0:01:30]} Nd4 {[%emt 0:01:30]} 18. Ne3 {[%emt 0:06:30]} e6 {[%emt 0:15:30]} 19. Bc3 {[%emt 0:03:30]} Bb5 {[%emt 0:10:30]} 20. Kh1 {[%emt 0:04:43]} Rfd8 {[%emt 0:03:30]} 21. Rad1 {[%emt 0:02:43]} Nc6 {[%emt 0:09:30]} 22. Bxg7 {[%emt 0:00:42]} Kxg7 {[%emt 0:00:00]} 23. Rxd8 {[%emt 0:01:11]} Rxd8 {[%emt 0:00:00]} 24. Rd1 {[%emt 0:00:00]} Rxd1+ {[%emt 0:00:30]} 25. Nxd1 {[%emt 0:00:03]} Nd4 {[%emt 0:01:30]} 26. Nc3 {[%emt 0:00:36]} Bc6 {[%emt 0:00:30]} 27. Kg1 {[%emt 0:02:33]} f5 {[%emt 0:03:30]} 28. exf5 {[%emt 0:00:18]} exf5 {[%emt 0:01:30]} 29. Bxc6 {[%emt 0:00:27]} Nxc6 {[%emt 0:00:30]} 30. f4 {[%emt 0:00:41]} Kf7 {[%emt 0:00:30]} 31. Kf2 {[%emt 0:00:15]} 1/2-1/2

[Event "ESTCC 65 2019"]
[Site "Mali Losinj"]
[Date "2019.09.21"]
[Round "4.12"]
[White "Kiefer, Gerhard"]
[Black "Reuben, Stewart"]
[Result "1-0"]
[ECO "B35"]
[WhiteElo "2227"]
[BlackElo "1983"]
[Annotator "NA"]
[PlyCount "43"]
[EventDate "2019.09.18"]
[EventType "team-tourn"]
[EventCountry "CRO"]
[SourceTitle "playchess.com"]
[Source "ChessBase"]
[SourceQuality "1"]
[WhiteTeam "Germany"]
[BlackTeam "England"]
[WhiteTeamCountry "GER"]
[BlackTeamCountry "ENG"]
[TimeControl "40/5400+30:1800+30"]

1. e4 {[%emt 0:00:30]} c5 {[%emt 0:00:30]} 2. Nf3 {[%emt 0:00:00]} Nc6 {[%emt 0:00:00]} 3. d4 {[%emt 0:00:00]} cxd4 {[%emt 0:00:00]} 4. Nxd4 {[%emt 0:00:00]} g6 {[%emt 0:00:30]} 5. Be3 {[%emt 0:00:00]} Nf6 {[%emt 0:01:30]} 6. Nc3 {[%emt 0:00:30]} Bg7 {[%emt 0:00:00]} 7. Bc4 {[%emt 0:02:30]} O-O {[%emt 0:00:00]} 8. Bb3 {[%emt 0:00:30]} a6 {[%emt 0:00:30]} 9. f3 {[%emt 0:00:00]} Qc7 {[%emt 0:01:30]} 10. Qd2 {[%emt 0:00:00]} b5 {[%emt 0:05:30]} 11. O-O-O {[%emt 0:00:30]} Na5 {[%emt 0:03:30]} 12. h4 {[%emt 0:00:30]} Bb7 {[%emt 0:09:30]} 13. h5 {[%emt 0:00:30]} b4 {[%emt 0:08:30]} 14. Na4 {[%emt 0:01:30]} Nxb3+ {[%emt 0:01:30]} 15. axb3 {[%emt 0:00:30]} Rac8 {[%emt 0:13:30]} 16. Kb1 {[%emt 0:02:30]} Nxh5 {[%emt 0:21:30]} 17. Rxh5 {[%emt 0:00:00]} gxh5 {[%emt 0:00:00]} 18. Nf5 {[%emt 0:00:00]} Bf6 {[%emt 0:05:00]} 19. Bd4 {[%emt 0:38:30]} e5 {[%emt 0:21:20]} 20. Bc5 {[%emt 0:00:30]} d5 {[%emt 0:01:26]} 21. Qh6 {[%emt 0:02:30]} Qc6 {[%emt 0:00:51]} 22. exd5 {[%emt 0:00:30]} 1-0